[Event "Kvika Banki League Iceland 2022-23"]
[Site "Reykjavik"]
[Date "2022.10.15"]
[Round "3.11"]
[White "Sulypa, Oleksandr"]
[Black "Gretarsson, Hjorvar Steinn"]
[Result "0-1"]
[ECO "B12"]
[WhiteElo "2463"]
[BlackElo "2533"]
[Annotator "TA"]
[PlyCount "68"]
[EventDate "2022.10.13"]
[EventType "team-tourn"]
[EventCountry "ISL"]
[SourceTitle "playchess.com"]
[Source "ChessBase"]
[SourceQuality "1"]
[TimeControl "5400+30"]

{[%evp 15,68,25,33,-35,-31,-35,-32,-34,-8,-41,-43,-46,0,-62,-30,-72,-27,-19,-23,-22,-20,-61,-60,-62,-58,-64,-58,-56,-52,-114,-124,-137,-137,-135,-135,-206,-198,-209,-203,-285,-288,-293,-275,-258,-258,-433,-450,-441,-437,-456,-471,-429,-449,-423,-394]} 1. e4 {[%emt 0:00:01]} c6 {[%emt 0:10:21]} 2. d4 {[%emt 0:00:12]} d5 {[%emt 0:00:15]} 3. e5 {[%emt 0:00:07]} Bf5 {[%emt 0:00:05]} 4. Nf3 {[%emt 0:00:06]} e6 {[%emt 0:00:05]} 5. Be2 {[%emt 0:00:05]} c5 {[%emt 0:02:43]} 6. Be3 {[%emt 0:00:59]} cxd4 {[%emt 0:01:00]} 7. Nxd4 {[%emt 0:00:06]} Ne7 {[%emt 0:00:08]} 8. c4 {[%emt 0:02:21] 8.0-0 is setting a new trend.} Nbc6 {[%emt 0:03:01]} 9. Nc3 {[%emt 0:02:13] B12: Caro-Kann: Advance Variation.} ({White should try} 9. Qa4 $14) 9... Nxd4 $15 {[%emt 0:15:27]} 10. Bxd4 {[%emt 0:01:28] [#] Black must now prevent g4.} dxc4 {[%emt 0:03:36]} 11. Bxc4 {[%emt 0:38:29] Black is slightly better.} a6 {[%emt 0:08:04] Prevents Nb5.} 12. f4 {[%emt 0:25:17] [#]} Nc6 $146 {[%emt 0:04:38]} ({Predecessor:} 12... Bc2 13. Qd2 Nc6 14. Be3 Qxd2+ 15. Kxd2 Bf5 16. Rad1 g5 17. g3 gxf4 18. gxf4 Rc8 {0-1 (59) Lane,G (2420)-Sahu,S (2285) Wrexham 1997}) 13. Bf2 {[%emt 0:00:26]} Qa5 {[%emt 0:09:12]} (13... g5 $15) 14. Qf3 {[%emt 0:02:03]} (14. O-O $11) 14... Bc5 {[%emt 0:02:17]} (14... O-O-O $5 {[%cal Rc6d4]} 15. O-O Bc5 $15) 15. O-O {[%emt 0:00:10]} Qb4 {[%emt 0:04:05]} (15... O-O-O $5 {[%cal Rg7g5]}) 16. Bb3 {[%emt 0:03:02]} O-O-O {[%emt 0:02:17]} 17. Bxc5 {[%emt 0:07:05]} Qxc5+ {[%emt 0:00:14]} 18. Kh1 {[%emt 0:00:44]} Nd4 {[%emt 0:05:38]} 19. Qg3 {[%emt 0:04:08]} Kb8 {[%emt 0:01:31]} 20. Bd1 {[%emt 0:02:18]} h5 {[%emt 0:01:05][%cal Bh7h5,Bh5h4,Bh4h3][%mdl 32]} 21. Qf2 {[%emt 0:00:48]} h4 {[%emt 0:04:05]} 22. Bf3 {[%emt 0:03:34]} (22. h3 $1 $15) 22... h3 $17 {[%emt 0:02:39][%cal Od4f3]} 23. g4 {[%emt 0:00:07]} Bd3 {[%emt 0:00:57]} 24. Rfd1 {[%emt 0:02:09]} Qc4 {[%emt 0:02:01] ...Nc2 is the strong threat. Black is more active.} 25. Rac1 {[%emt 0:01:21] Against Nc2} (25. Rd2 $17 Nxf3 26. Qxf3) 25... Nxf3 $19 {[%emt 0:00:39]} 26. Qxf3 {[%emt 0:00:02]} Rd7 {[%emt 0:02:33] Strongly threatening ...Rhd8.} 27. b3 {[%emt 0:01:10]} (27. Kg1 {keeps fighting.}) 27... Qd4 {[%emt 0:00:16] [#] Hoping for ...Rc8.} 28. Ne2 {[%emt 0:00:59]} Bxe2 {[%emt 0:00:40]} 29. Qxe2 {[%emt 0:00:34]} Qxf4 $40 {[%emt 0:00:22][%mdl 128] Black wants a kill.} 30. Rxd7 $2 {[%emt 0:02:32]} (30. Rf1 {only move.} Qg5 31. Qf3) 30... Qxc1+ {[%emt 0:00:07] KQR-KQR. Black is clearly winning.} 31. Rd1 {[%emt 0:00:01]} Rc8 {[%emt 0:01:39]} 32. Kg1 {[%emt 0:00:02]} Qf4 {[%emt 0:02:29]} 33. Rf1 {[%emt 0:00:50]} Qd4+ {[%emt 0:00:15]} 34. Qf2 {[%emt 0:01:29]} Qxg4+ {[%emt 0:00:08] Weighted Error Value: White=0.31/Black=0.07 (flawless)} 0-1

[Event "Kvika Banki League Iceland 2022-23"]
[Site "Reykjavik"]
[Date "2022.10.15"]
[Round "3.12"]
[White "Stefansson, Hannes"]
[Black "Petursson, Margeir"]
[Result "1/2-1/2"]
[ECO "B36"]
[WhiteElo "2527"]
[BlackElo "2447"]
[Annotator "TA"]
[PlyCount "49"]
[EventDate "2022.10.13"]
[EventType "team-tourn"]
[EventCountry "ISL"]
[SourceTitle "playchess.com"]
[Source "ChessBase"]
[SourceQuality "1"]
[TimeControl "5400+30"]

{[%evp 18,49,48,43,35,29,37,29,39,34,43,13,16,23,14,20,20,0,0,0,0,0,0,0,0,0,0,-14,-8,-8,-13,-14,0,-25]} 1. e4 {[%emt 0:00:18]} c5 {[%emt 0:00:07]} 2. Nf3 {[%emt 0:00:17]} g6 {[%emt 0:00:06]} 3. c4 {[%emt 0:00:46]} Nc6 {[%emt 0:00:14]} 4. d4 {[%emt 0:00:21]} cxd4 {[%emt 0:00:03]} 5. Nxd4 {[%emt 0:00:07]} Nf6 {[%emt 0:00:05]} 6. Nc3 {[%emt 0:00:30]} Nxd4 {[%emt 0:00:27]} 7. Qxd4 {[%emt 0:00:21]} d6 {[%emt 0:00:04]} 8. Be2 {[%emt 0:00:58]} Bg7 {[%emt 0:00:09]} 9. Be3 {[%emt 0:01:10]} O-O {[%emt 0:00:39]} 10. Qd2 {[%emt 0:00:40]} a5 {[%emt 0:00:19][%cal Ba7a5,Ba5a4][%mdl 32] B36: Sicilian: Maroczy Bind: Gurgenidze System.} 11. O-O {[%emt 0:10:01]} a4 {[%emt 0:03:01]} 12. Rab1 {[%emt 0:02:46]} Qa5 {[%emt 0:13:03] White has an edge.} 13. Rfc1 {[%emt 0:03:21]} Be6 {[%emt 0:01:46]} 14. f3 {[%emt 0:01:51]} Rfc8 {[%emt 0:01:24]} 15. b4 {[%emt 0:05:17]} axb3 $1 {[%emt 0:01:55]} 16. axb3 {[%emt 0:00:05] The position is equal.} Qb4 {[%emt 0:05:54]} 17. Kh1 {[%emt 0:02:50]} Nd7 {[%emt 0:08:43]} 18. Qe1 {[%emt 0:01:09] [#]} Nc5 $146 {[%emt 0:14:20]} ({Predecessor:} 18... Bxc3 19. Rxc3 Ra2 20. Bd2 Qb6 21. Bf1 Rca8 22. b4 R8a3 23. Be3 Qc7 24. Bd4 b6 {½-½ (45) Ortiz Suarez,I (2531)-Quesada Perez,Y (2568) Santa Clara 2022}) 19. Nd5 {[%emt 0:16:52]} Qxe1+ {[%emt 0:00:56]} 20. Rxe1 {[%emt 0:00:06]} Bxd5 {[%emt 0:00:27]} 21. cxd5 {[%emt 0:00:49]} Ra3 {[%emt 0:03:18]} 22. Rec1 {[%emt 0:01:44]} Rca8 {[%emt 0:01:18]} 23. Bc4 {[%emt 0:01:17]} h5 {[%emt 0:05:13]} 24. Kg1 {[%emt 0:01:33]} Na4 {[%emt 0:09:45] [#] Threatens to win with ...Nc3.} 25. bxa4 {[%emt 0:12:56] Weighted Error Value: White=0.05 (flawless) /Black=0.01 (flawless)} 1/2-1/2

[Event "Kvika Banki League Iceland 2022-23"]
[Site "Reykjavik"]
[Date "2022.10.15"]
[Round "3.13"]
[White "Thorhallsson, Throstur"]
[Black "Movsziszian, Karen"]
[Result "1/2-1/2"]
[ECO "B06"]
[WhiteElo "2396"]
[BlackElo "2474"]
[Annotator "TA"]
[PlyCount "87"]
[EventDate "2022.10.13"]
[EventType "team-tourn"]
[EventCountry "ISL"]
[SourceTitle "playchess.com"]
[Source "ChessBase"]
[SourceQuality "1"]
[TimeControl "5400+30"]

{[%evp 12,87,30,17,66,45,62,15,38,-5,3,4,18,-39,-18,-25,-21,-75,-77,-72,-80,-124,-107,-97,-113,-216,-218,-213,-122,-117,-108,-108,-116,-89,-62,-62,-57,-58,-50,-57,-64,-64,-64,-64,-64,-57,-35,-35,0,0,0,0,0,0,0,0,0,0,0,0,0,0,0,0,0,0,0,0,0,0,0,0,0,0,0,0,0,0]} 1. e4 {[%emt 0:00:03]} d6 {[%emt 0:01:28]} 2. d4 {[%emt 0:00:17]} g6 {[%emt 0:00:07]} 3. Nc3 {[%emt 0:00:07]} Bg7 {[%emt 0:00:03]} 4. Be3 {[%emt 0:01:41]} a6 {[%emt 0:00:23]} 5. Qd2 {[%emt 0:03:25]} b5 {[%emt 0:00:29]} 6. f3 {[%emt 0:01:22]} Nd7 {[%emt 0:00:29]} 7. h4 {[%emt 0:01:22]} h6 {[%emt 0:01:13] 7...Ngf6 is setting a new trend. B06: Modern Defence.} (7... h5 $11) 8. Nh3 {[%emt 0:08:25] White is more active.} Ngf6 {[%emt 0:03:25] [#]} 9. g3 $146 {[%emt 0:04:29]} (9. O-O-O $14) ({Predecessor:} 9. g4 Bb7 10. g5 hxg5 11. Nxg5 c5 12. a4 b4 13. Bc4 e6 14. Ne2 d5 15. exd5 Nxd5 {1-0 (47) Hovhannisyan,R (2642)-Adhiban,B (2659) Chess.com INT 2020}) 9... Bb7 $11 {[%emt 0:02:26]} 10. Bg2 {[%emt 0:01:36]} Rc8 {[%emt 0:08:03]} 11. Ne2 {[%emt 0:09:05]} e5 {[%emt 0:03:33]} 12. Nf2 {[%emt 0:04:03]} (12. O-O-O $11) 12... d5 {[%emt 0:06:27]} 13. c3 {[%emt 0:27:28]} Qe7 {[%emt 0:02:40]} 14. O-O-O {[%emt 0:05:01]} (14. h5 $11 {keeps the balance.}) 14... c5 $17 {[%emt 0:02:55]} 15. dxc5 {[%emt 0:06:32]} Nxc5 {[%emt 0:02:00]} 16. exd5 {[%emt 0:07:15]} Nxd5 {[%emt 0:04:55][%cal Ob5b4]} 17. Bxc5 {[%emt 0:03:13]} Qxc5 {[%emt 0:02:23]} 18. Ne4 {[%emt 0:00:42]} (18. f4 $17) 18... Qb6 $19 {[%emt 0:09:25] aiming for ...0-0.} 19. f4 {[%emt 0:01:45] [#]} O-O {[%emt 0:01:19]} ({Better is} 19... Rd8 $1 $19 {And now ...0-0 would win.} 20. fxe5 Bxe5) 20. Nd6 $17 {[%emt 0:01:50]} Qxd6 {[%emt 0:00:37]} 21. Bxd5 {[%emt 0:00:05]} Bxd5 {[%emt 0:01:35]} 22. Qxd5 {[%emt 0:00:05]} Qxd5 {[%emt 0:00:26]} (22... Qb6 {feels hotter.} 23. h5 gxh5 24. Kb1 Rfd8) 23. Rxd5 {[%emt 0:00:05]} exf4 {[%emt 0:00:03]} 24. gxf4 {[%emt 0:01:21]} Rfe8 {[%emt 0:01:53]} 25. Kd2 {[%emt 0:01:26]} h5 {[%emt 0:00:34]} 26. Kd3 {[%emt 0:01:49]} Rcd8 {[%emt 0:03:02]} 27. Rxd8 {[%emt 0:00:08]} Rxd8+ $15 {[%emt 0:00:01][%mdl 4096] Endgame KRB-KRN} 28. Ke3 {[%emt 0:01:46]} Kf8 {[%emt 0:04:26]} 29. Nd4 {[%emt 0:05:07]} Bxd4+ {[%emt 0:05:02]} 30. cxd4 {[%emt 0:00:01] KR-KR. The position is equal.} Rc8 {[%emt 0:00:04]} 31. Kd3 {[%emt 0:00:31] Prevents Rc2.} Ke7 {[%emt 0:01:08]} 32. Re1+ {[%emt 0:01:27]} Kd6 {[%emt 0:00:46]} 33. f5 {[%emt 0:00:56]} gxf5 {[%emt 0:14:07]} 34. Re5 {[%emt 0:00:06]} Rg8 {[%emt 0:00:15]} 35. Rxf5 {[%emt 0:00:07]} Rg3+ {[%emt 0:00:07]} 36. Kc2 {[%emt 0:01:38]} Rg4 {[%emt 0:06:44]} 37. Rxh5 {[%emt 0:00:14]} Rxd4 {[%emt 0:00:01]} 38. Rh6+ {[%emt 0:00:31]} Kd5 {[%emt 0:03:50]} 39. Rxa6 {[%emt 0:00:39]} Rxh4 {[%emt 0:00:17]} 40. Rf6 {[%emt 0:00:23]} Kc4 {[%emt 0:02:55]} 41. Rxf7 {[%emt 0:01:43]} Rh2+ {[%emt 0:00:01]} 42. Kc1 {[%emt 0:00:08]} Rh1+ {[%emt 0:00:04]} 43. Kc2 {[%emt 0:00:03]} Rh2+ {[%emt 0:00:02]} 44. Kc1 {[%emt 0:00:04] Whites escaped into a draw.  Weighted Error Value: White=0.15 (very precise) /Black=0.10 (very precise)} 1/2-1/2

[Event "Kvika Banki League Iceland 2022-23"]
[Site "Reykjavik"]
[Date "2022.10.15"]
[Round "3.14"]
[White "Arngrimsson, Dagur"]
[Black "Johannesson, Ingvar Thor"]
[Result "1/2-1/2"]
[ECO "E06"]
[WhiteElo "2377"]
[BlackElo "2319"]
[Annotator "TA"]
[PlyCount "59"]
[EventDate "2022.10.13"]
[EventType "team-tourn"]
[EventCountry "ISL"]
[SourceTitle "playchess.com"]
[Source "ChessBase"]
[SourceQuality "1"]
[TimeControl "5400+30"]

{[%evp 16,59,0,0,5,14,24,18,22,-5,0,0,8,-29,-29,-18,8,12,40,35,37,34,32,6,20,4,4,0,16,7,7,7,8,8,17,17,18,5,34,17,16,7,15,7,15,0]} 1. d4 {[%emt 0:04:36]} Nf6 {[%emt 0:00:12]} 2. c4 {[%emt 0:01:40]} e6 {[%emt 0:01:27]} 3. Nf3 {[%emt 0:00:19]} d5 {[%emt 0:03:51]} 4. Nbd2 {[%emt 0:01:24]} Be7 {[%emt 0:05:13]} 5. g3 {[%emt 0:00:08]} O-O {[%emt 0:03:16]} 6. Bg2 {[%emt 0:00:05]} b6 {[%emt 0:04:33]} 7. cxd5 {[%emt 0:00:43]} exd5 {[%emt 0:00:06]} 8. O-O {[%emt 0:00:40]} Bb7 {[%emt 0:01:29]} 9. Ne5 {[%emt 0:10:29]} Nbd7 {[%emt 0:10:42] E06: Closed Catalan: Early deviations.} 10. b3 {[%emt 0:04:03]} Re8 {[%emt 0:16:18]} 11. Bb2 {[%emt 0:03:30] [#]} Bf8 $146 {[%emt 0:14:58]} ({Predecessor:} 11... c5 12. Rc1 Rc8 13. Ndc4 Nxe5 14. dxe5 Ne4 15. Qc2 dxc4 16. Rfd1 cxb3 17. axb3 Qc7 18. Bxe4 Bxe4 19. Qxe4 Rcd8 20. e6 Bf8 21. Rxd8 Rxd8 {½-½ (45) Gabuzyan,H (2607)-Pashikian,A (2615) Martuni 2016}) 12. Ndf3 {[%emt 0:13:49]} Ne4 {[%emt 0:02:08]} 13. Rc1 {[%emt 0:01:27]} c5 {[%emt 0:00:47]} 14. Bh3 {[%emt 0:12:04]} Nxe5 {[%emt 0:06:26]} 15. Nxe5 {[%emt 0:00:21]} Ng5 {[%emt 0:00:20]} 16. Bg2 {[%emt 0:00:42]} Ne4 {[%emt 0:05:14]} 17. dxc5 {[%emt 0:11:31]} bxc5 {[%emt 0:01:25]} 18. Bxe4 {[%emt 0:07:37]} dxe4 {[%emt 0:00:06]} 19. Qd7 {[%emt 0:10:07]} (19. Nd7 $5 {[%cal Rd7f8]}) 19... Qe7 {[%emt 0:11:45]} 20. Rfd1 {[%emt 0:00:59]} f6 {[%emt 0:01:05]} 21. Nc4 {[%emt 0:03:06]} Rad8 {[%emt 0:01:12]} 22. Qxe7 {[%emt 0:00:16]} (22. Qb5 {is more complex.} Qc7 23. Ne3 Bc6 24. Qc4+) 22... Bxe7 {[%emt 0:00:17]} 23. Ba3 {[%emt 0:05:56]} Ba6 {[%emt 0:02:47]} 24. Kf1 {[%emt 0:00:17]} Kf7 {[%emt 0:00:41]} 25. Ne3 {[%emt 0:01:34]} Rxd1+ {[%emt 0:03:27]} 26. Rxd1 {[%emt 0:00:59]} Bc8 {[%emt 0:00:51] Inhibits Rd7.} 27. Ke1 {[%emt 0:00:53]} Be6 {[%emt 0:00:26] The position is equal.} 28. Nd5 {[%emt 0:00:53]} Bxd5 {[%emt 0:01:00]} 29. Rxd5 {[%emt 0:00:09]} Ke6 {[%emt 0:00:02] Prevents Rd7.} 30. Rd2 {[%emt 0:02:31] Weighted Error Value: White=0.08 (flawless) /Black=0.09 (flawless)} 1/2-1/2

[Event "Kvika Banki League Iceland 2022-23"]
[Site "Reykjavik"]
[Date "2022.10.15"]
[Round "3.15"]
[White "Domalchuk-Jonasson, Aleksandr"]
[Black "Petersson, Baldur Teodor"]
[Result "1-0"]
[ECO "A57"]
[WhiteElo "2300"]
[BlackElo "2230"]
[Annotator "TA"]
[PlyCount "65"]
[EventDate "2022.10.13"]
[EventType "team-tourn"]
[EventCountry "ISL"]
[SourceTitle "playchess.com"]
[Source "ChessBase"]
[SourceQuality "1"]
[TimeControl "5400+30"]

{[%evp 9,65,24,53,37,68,62,75,85,74,59,64,58,70,56,59,50,66,47,43,36,45,26,59,61,55,43,68,78,84,53,106,110,139,130,133,127,141,131,228,232,227,228,224,225,270,239,330,329,414,423,1315,735,726,718,704,693,1120,841]} 1. d4 {[%emt 0:00:03]} Nf6 {[%emt 0:00:13]} 2. c4 {[%emt 0:00:34]} c5 {[%emt 0:00:12]} 3. d5 {[%emt 0:00:11]} b5 {[%emt 0:00:10]} 4. cxb5 {[%emt 0:00:29]} a6 {[%emt 0:00:07]} 5. e3 {[%emt 0:01:03]} g6 {[%emt 0:08:34]} 6. Nc3 {[%emt 0:00:38] A57: Benko/Volga Gambit.} axb5 {[%emt 0:00:58]} 7. Bxb5 {[%emt 0:00:12]} Ba6 {[%emt 0:00:46]} 8. Bxa6 {[%emt 0:14:59] White is more active. White is better.} Nxa6 {[%emt 0:04:01]} 9. Nf3 {[%emt 0:00:52]} d6 {[%emt 0:01:01]} 10. O-O {[%emt 0:00:26]} Bg7 {[%emt 0:00:53]} 11. e4 {[%emt 0:01:03]} Nd7 {[%emt 0:04:31]} 12. Be3 {[%emt 0:07:58]} O-O {[%emt 0:05:24] [#]} 13. Nd2 $146 {[%emt 0:09:24]} ({Predecessor:} 13. Qe2 Qb6 14. Rab1 Rfb8 15. Nd2 Qb7 16. Rfc1 Nc7 17. a3 Qa6 18. Qxa6 Rxa6 19. f4 f5 20. Kf2 {½-½ (36) Essing,A (1935)-Boehle,L (2015) Germany 1989}) 13... Qb8 {[%emt 0:04:17]} 14. Rb1 {[%emt 0:05:03]} Nc7 {[%emt 0:04:37]} 15. Qc2 {[%emt 0:07:49]} Nb5 {[%emt 0:04:10]} 16. Nxb5 {[%emt 0:04:25]} Qxb5 {[%emt 0:00:07]} 17. b3 $1 {[%emt 0:00:16]} Qa6 {[%emt 0:02:02]} 18. a4 {[%emt 0:00:37][%cal Ba2a4,Ba4a5][%mdl 32]} Rfb8 {[%emt 0:02:18]} 19. Nc4 {[%emt 0:11:50]} Rb7 {[%emt 0:01:33]} ({Better is} 19... Ne5 $14) 20. Bd2 $16 {[%emt 0:01:36]} Rc7 {[%emt 0:10:14]} 21. h3 {[%emt 0:08:33]} Ne5 {[%emt 0:08:00]} 22. a5 {[%emt 0:02:03]} Rb8 {[%emt 0:14:45]} 23. Bc3 {[%emt 0:08:31]} Nd7 {[%emt 0:05:06]} (23... Nxc4 $16 24. bxc4 Rcb7 25. Rxb7 Rxb7) 24. Bxg7 $18 {[%emt 0:03:17]} Kxg7 {[%emt 0:00:06]} 25. f4 {[%emt 0:00:44]} Nf6 {[%emt 0:03:37]} 26. Rbd1 {[%emt 0:03:01]} Rcb7 {[%emt 0:02:24]} 27. Rf3 {[%emt 0:01:00]} Rb4 {[%emt 0:01:14]} 28. e5 {[%emt 0:01:02][%cal Be4e5,Be5f6][%mdl 32]} Ne8 {[%emt 0:01:03]} 29. f5 {[%emt 0:01:37] [#] Threatens to win with fxg6.} Qb5 {[%emt 0:05:30]} (29... dxe5 $142 30. Nxe5 g5) 30. f6+ {[%emt 0:01:44]} exf6 {[%emt 0:00:22]} 31. exf6+ {[%emt 0:00:08]} Kg8 {[%emt 0:00:18]} 32. Re1 {[%emt 0:00:23]} Qb7 {[%emt 0:03:47]} 33. Qd2 {[%emt 0:00:56] Weighted Error Value: White=0.08 (flawless) /Black=0.29 (precise)} 1-0

[Event "Kvika Banki League Iceland 2022-23"]
[Site "Reykjavik"]
[Date "2022.10.15"]
[Round "3.16"]
[White "Ptacnikova, Lenka"]
[Black "Mai, Alexander Oliver"]
[Result "0-1"]
[ECO "B13"]
[WhiteElo "2055"]
[BlackElo "2183"]
[Annotator "TA"]
[PlyCount "90"]
[EventDate "2022.10.13"]
[EventType "team-tourn"]
[EventCountry "ISL"]
[SourceTitle "playchess.com"]
[Source "ChessBase"]
[SourceQuality "1"]
[TimeControl "5400+30"]

{[%evp 9,90,0,0,0,0,0,0,-12,-4,0,0,-11,0,0,0,-4,-9,-47,-39,-39,-41,-47,-39,-72,-72,-72,-70,-77,-56,-70,-26,-55,-52,-45,-64,-64,-55,-41,-36,-65,-57,-118,-101,-102,-101,-101,-101,-101,-100,-107,-107,-103,-100,-104,-97,-102,-102,-127,-109,-220,-214,-259,-219,-241,-241,-282,-282,-494,-154,-1000,-996,-991,-989,-956,-833,-29948,-29951,-9298,-8630,-6073,-5939,-29969,-5329]} 1. d4 {[%emt 0:00:15]} Nf6 {[%emt 0:01:01]} 2. Nc3 {[%emt 0:01:15]} d5 {[%emt 0:00:09]} 3. Bf4 {[%emt 0:00:08]} c5 {[%emt 0:00:18]} 4. e3 {[%emt 0:00:30]} cxd4 {[%emt 0:02:05]} 5. exd4 {[%emt 0:02:55]} a6 {[%emt 0:00:09]} 6. Nf3 {[%emt 0:02:49] B13: Caro-Kann: Exchange Variation and Panov-Botvinnik Attack.} Nc6 {[%emt 0:00:21]} 7. Ne5 {[%emt 0:01:49]} Bd7 {[%emt 0:01:09]} 8. Nxc6 {[%emt 0:04:56] The position is equal. 8.g4 is becoming the main line.} Bxc6 {[%emt 0:00:31]} 9. Be2 {[%emt 0:00:55]} e6 {[%emt 0:02:06]} 10. Qd3 {[%emt 0:07:50]} b5 {[%emt 0:02:06]} 11. a3 {[%emt 0:03:35] [#]} Be7 $146 {[%emt 0:03:42]} ({Predecessor:} 11... Bd6 12. Bxd6 Qxd6 13. Qg3 Ke7 14. Qxg7 Rhg8 15. Qh6 Rxg2 16. Qh4 Rag8 17. O-O-O R2g5 {0-1 (35) Bern,I (2301)-Blomqvist,E (2536) Norway 2020}) 12. Qg3 {[%emt 0:03:10]} O-O {[%emt 0:01:27]} 13. Bc7 {[%emt 0:16:35]} Qd7 {[%emt 0:03:13]} 14. Be5 {[%emt 0:00:34]} a5 {[%emt 0:04:05]} 15. O-O {[%emt 0:05:49]} b4 {[%emt 0:03:20]} 16. axb4 {[%emt 0:05:56]} axb4 {[%emt 0:00:12]} 17. Rxa8 {[%emt 0:00:07]} Rxa8 {[%emt 0:00:23]} 18. Nd1 {[%emt 0:00:14]} Ne8 {[%emt 0:04:22]} (18... g6 {is interesting.} 19. Qh3 Ne4 20. f3 Nd6) 19. h4 {[%emt 0:03:54]} Bf8 {[%emt 0:08:13]} 20. h5 {[%emt 0:04:51]} Bb5 {[%emt 0:04:37]} 21. Bxb5 {[%emt 0:01:14]} Qxb5 {[%emt 0:00:03]} 22. Ne3 {[%emt 0:00:11]} f6 {[%emt 0:05:42]} 23. Bf4 {[%emt 0:04:59]} Qe2 {[%emt 0:08:07]} 24. Qh3 {[%emt 0:06:29]} Kf7 {[%emt 0:01:33] Black is more active.} 25. Nxd5 {[%emt 0:08:53]} Qe4 $36 {[%emt 0:11:01][%mdl 2048] White is under strong pressure.} 26. Nc7 {[%emt 0:01:48]} (26. Nb6 $2 Ra6 27. Nc4 Qxf4 $19) 26... Rc8 {[%emt 0:01:12]} 27. Qg3 {[%emt 0:01:54]} ({Don't blunder} 27. Nxe8 $2 Qxf4 28. Nxg7 (28. g3 $2 Qxd4 29. Nxg7 Kxg7 $19) 28... Bxg7 $19) 27... Nxc7 {[%emt 0:06:53]} 28. Bxc7 {[%emt 0:00:04]} Qxd4 {[%emt 0:01:11]} ({Much weaker is} 28... Qxc2 $6 29. Bd6 $11) 29. c3 {[%emt 0:05:30]} bxc3 {[%emt 0:01:26]} 30. bxc3 {[%emt 0:00:09]} Qc5 {[%emt 0:00:23][%csl LRc7,LRh5]} 31. Bf4 {[%emt 0:00:26]} Qxh5 {[%emt 0:03:41]} 32. Qd3 {[%emt 0:01:31] [#] Inhibits Rc4. Black must now prevent Qd7+.} Be7 {[%emt 0:00:35]} 33. Re1 {[%emt 0:01:25]} Qg4 {[%emt 0:01:39]} 34. Bg3 {[%emt 0:01:17]} (34. Be3 $17) 34... h5 $19 {[%emt 0:00:55]} 35. Re4 {[%emt 0:00:56]} Qf5 {[%emt 0:00:32][%cal Oc8c3]} 36. c4 {[%emt 0:01:10]} Rd8 {[%emt 0:01:01]} 37. Qe2 {[%emt 0:00:40]} Bc5 {[%emt 0:00:53]} 38. Rf4 $2 {[%emt 0:01:05]} (38. Rh4) 38... Qg6 $2 {[%emt 0:10:02]} (38... Qb1+ $19 39. Kh2 g5) 39. Re4 $2 {[%emt 0:01:23] This costs White the game.} (39. Kh2 $17) 39... Qxg3 {[%emt 0:01:52]} 40. Qxh5+ {[%emt 0:00:17]} Qg6 {[%emt 0:00:08]} 41. Qxg6+ {[%emt 0:00:53]} Kxg6 {[%emt 0:00:06]} 42. Rxe6 {[%emt 0:00:07]} Rd1+ {[%emt 0:00:25]} 43. Kh2 {[%emt 0:00:05]} Bxf2 {[%emt 0:00:10] [#] ( -> ...Kf5)} 44. Re2 {[%emt 0:00:17]} Bc5 {[%emt 0:00:27]} 45. Rc2 {[%emt 0:00:28]} Kf5 {[%emt 0:00:24] Weighted Error Value: White=0.68/Black=0.19 (very precise)} 0-1